Cogmind - Beta 15 @@@ ROGUE MODE // 2025.09.07 @ 19:45:25 Player: beans Result: Destroyed by H-66 Slayer with Gauss Rifle Performance ------------- Evolutions (4) 2000 Regions Visited (9) 1800 Robots Destroyed (106) 530 Value Destroyed (2757) 2757 Prototype IDs (9) 180 Alien Tech Used (0) 0 Bonus (-30) -30 TOTAL SCORE: 7237 Bonus ------- High Alert Combat Kills 158 Follower Combat Kills 567 Friendly Fire -755 Cogmind --------- Core Integrity 0/850 Matter 255/300 Energy 98/100 System Corruption 2% Temperature Cool (0) Movement Core (50) Location -6/Lower Caves Parts ------- > --- POWER (1) -------- (None) > --- PROPULSION (5) --- (None) > --- UTILITY (5) ------ Improved Signal Interpreter System Shield > --- WEAPON (4) ------- (None) > --- INVENTORY (5) ---- Neutrino Core Heavy Treads Remote Datajack Peak State ------------ > --- POWER ------------ Enhanced Nuclear Core > --- PROPULSION ------- Improved Medium Treads Spiked Medium Treads Spiked Medium Treads Heavy Treads > --- UTILITY ---------- Improved Heat Sink Improved Signal Interpreter Improved Hacking Suite System Shield > --- WEAPON ----------- Thermic Laser Autogun Bore Cannon > --- INVENTORY -------- Remote Datajack [Rating: 58] Favorites ----------- Power Enhanced Nuclear Core Engine Backup Power III Power Core Enhanced Nuclear Core Reactor Fusion Reactor Propulsion Cooled VTOL Module Treads Heavy Treads Flight Unit Cooled VTOL Module Utility Improved Heat Sink Device Improved Heat Sink Processor Improved Signal Interpreter Hackware Hacking Suite Protection Backup Plating III Weapon Bore Cannon Energy Gun Small Laser Energy Cannon Advanced Beam Cannon Ballistic Gun Heavy Battle Rifle Ballistic Cannon Bore Cannon Launcher Missile Launcher Special Weapon Remote Datajack Build | -11 -10 -9 -9 -8 -7 -7 -7 -6 -6 ------- Run | Yrd Mat Mat Min Mat Fac Was Fac Fac Low Slots Evolved 8 | . . 2 . 2 2 . . 2 . Power . | . . . . . . . . . . Propulsion 3 | . . 2 . . 1 . . . . Utility 3 | . . . . 2 . . . 1 . Weapon 2 | . . . . . 1 . . 1 . Parts Attached 70 | 6 3 10 2 22 2 7 6 6 6 Power 11 | 1 . 1 1 4 . 1 3 . . Engine 6 | 1 . 1 1 3 . . . . . Core 4 | . . . . 1 . . 3 . . Reactor 1 | . . . . . . 1 . . . Propulsion 23 | 2 . 6 . 10 1 1 . . 3 Treads 6 | 2 . . . . . 1 . . 3 Leg . | . . . . . . . . . . Wheel . | . . . . . . . . . . Hover . | . . . . . . . . . . Flight 17 | . . 6 . 10 1 . . . . Utility 14 | . 2 . . 6 . 2 . 3 1 Device 9 | . 2 . . 5 . . . 2 . Storage . | . . . . . . . . . . Processor 1 | . . . . . . . . 1 . Hackware 4 | . . . . 1 . 2 . . 1 Protection . | . . . . . . . . . . Artifact . | . . . . . . . . . . Weapon 22 | 3 1 3 1 2 1 3 3 3 2 Energy Gun 6 | 2 1 . 1 . . . . . 2 Energy Cannon 1 | . . 1 . . . . . . . Ballistic Gun 9 | 1 . 1 . 1 . 2 2 2 . Ballistic Cannon 4 | . . 1 . . . 1 1 1 . Launcher 1 | . . . . 1 . . . . . Special Weapon 1 | . . . . . 1 . . . . Impact Weapon . | . . . . . . . . . . Slashing Weapon . | . . . . . . . . . . Piercing Weapon . | . . . . . . . . . . Special Melee Weapon . | . . . . . . . . . . Unidentified Prototypes 9 | . . 2 . 5 . 1 1 . . Corrupted Parts 1 | . 1 . . . . . . . . System Corruption 4 | . 4 . . . . . . . . Parts Lost 35 | . . 3 . 9 1 1 3 6 12 Power 4 | . . 1 . 1 . . 1 . 1 Propulsion 10 | . . 2 . 4 . 1 . . 3 Utility 8 | . . . . 3 1 . . 2 2 Weapon 13 | . . . . 1 . . 2 4 6 Highest Loss Streak 9 | . . 2 . 2 1 1 2 4 9 To Critical Strikes . | . . . . . . . . . . Average Backups 3 | . 2 3 5 4 4 3 4 4 3 Power . | . . . . . . . . . . Propulsion . | . . . . . . . . . . Utility . | . . . 3 1 2 . . . . Weapon 2 | . 1 3 1 1 1 2 4 3 1 Tool/Special . | . . . . . . . . . . Unused Backups 3 | . . . 1 . . . . . 2 Power 1 | . . . . . . . . . 1 Propulsion . | . . . . . . . . . . Utility 1 | . . . 1 . . . . . . Weapon 1 | . . . . . . . . . 1 Tool/Special . | . . . . . . . . . . Average Slot Usage (%) 67 | . 87 67 100 79 45 63 65 58 57 Engine 5 | . 14 10 11 5 7 7 5 . . Core 2 | . . . . 2 . . 1 6 4 Treads 6 | . 28 . . . . 3 7 6 11 Flight 10 | . . 17 44 30 16 8 . . . Device 13 | . 15 22 22 26 16 7 7 7 4 Processor 1 | . . . . . . . . 2 6 Hackware 7 | . . . . 4 . 8 15 13 12 Protection 2 | . . . . . . 5 7 1 . Energy Gun 4 | . 28 5 3 3 . 2 . . 3 Ballistic Gun 6 | . . 6 10 6 . 6 7 7 9 Ballistic Cannon 4 | . . 3 9 . . 3 10 10 3 Peak Build Rating 58 | 5 9 14 17 38 27 43 46 48 58 Average Rating 30 | 3 7 9 14 30 24 35 41 43 34 On Entrance 22 | . 5 9 14 15 27 26 43 46 39 Naked Turns . | . . . . . . . . . . Heaviest Build 35 | 8 9 12 14 17 17 24 33 35 28 Greatest Support 86 | 40 40 16 16 28 20 70 70 70 86 Greatest Overweight (x) 7 | . . 2 . 3 1 2 . . 7 Average Overweight (x) . | . . . . . . . . . 1 Largest Inventory Capacity 5 | 5 5 5 5 5 5 5 5 5 5 Average Capacity 5 | 5 5 5 5 5 5 5 5 5 5 Most Carried 5 | 2 4 5 5 5 5 5 5 5 5 Average Carried 4 | . 2 3 5 4 4 3 4 4 4 Final Capacity 5 | 5 5 5 5 5 5 5 5 5 5 Final Carried 5 | 1 4 5 5 4 4 5 5 3 4 Class Distribution -------------------- 27% | Mutant 22% | Hacker-Tank 12% | Hacker-Mutant 9% | Sprinter 8% | Hacker-Gunner 6% | Scavenger-Sprinter 4% | Derelict-Gunner 4% | Tank Dominant Class ---------------- Mutant | -10/Materials Mutant | -9/Materials Scavenger-Sprinter | -9/Mines Sprinter | -8/Materials Mutant | -7/Factory Hacker-Tank | -7/Waste Hacker-Tank | -7/Factory Hacker-Tank | -6/Factory Hacker-Gunner | -6/Lower Caves Resources | -11 -10 -9 -9 -8 -7 -7 -7 -6 -6 ----------- Run | Yrd Mat Mat Min Mat Fac Was Fac Fac Low Matter Collected 2998 | 262 45 215 159 581 . 423 493 490 330 Remotely . | . . . . . . . . . . Salvage Created 4415 | . 245 339 270 1102 . 695 636 1098 30 Parts 186 | . 23 17 8 49 . 3 42 43 1 Haulers Intercepted 6 | . . 2 . 2 . . 1 1 . Recyclers Shooed 9 | . 2 . . 2 . . 3 2 . Parts Field Recycled . | . . . . . . . . . . Retrieved Matter . | . . . . . . . . . . Parts Self-Destructed 1 | . . . . . . . . . 1 Prevented . | . . . . . . . . . . Kills | -11 -10 -9 -9 -8 -7 -7 -7 -6 -6 ------- Run | Yrd Mat Mat Min Mat Fac Was Fac Fac Low Combat Hostiles Destroyed 57 | . 5 10 3 19 . 3 3 13 1 Melee 1 | . . . . . . . . . 1 Guns 30 | . 5 5 2 13 . 1 . 4 . Cannons 16 | . . 5 1 . . . 3 7 . AOE 10 | . . . . 6 . 2 . 2 . Classes Destroyed 14 | . 5 3 . 3 . 1 . 2 . Worker 9 | . 1 . . 1 . . 4 3 . Builder 8 | . . . . 2 . . 2 4 . Hauler 6 | . . 2 . 2 . . 1 1 . Recycler 12 | . 1 . 2 2 . . 4 3 . Mechanic 2 | . . . . 1 . . . 1 . Watcher 7 | . 1 1 . 3 . . 1 1 . Swarmer 11 | . 3 4 . 3 . . . 1 . Saboteur 1 | . . . . . . . . 1 . Grunt 28 | . 2 4 3 10 . . 1 8 . Brawler 5 | . . 1 . 3 . . . 1 . Sentry 5 | . . 1 . 2 . . 1 1 . Hunter 3 | . . . . 1 . . 1 . 1 Programmer 1 | . . . . . . . . 1 . Compactor 3 | . . . . . . 3 . . . Surgeon 1 | . . . . . . . . 1 . Wasp 3 | . . . . . . 3 . . . Savage 1 | . . . . . . . 1 . . Best Kill Streak 11 | . 3 4 3 6 . 1 5 11 1 Combat Bots Only 6 | . 3 4 2 6 . 1 1 4 1 Max Kills in Single Turn 6 | . 1 1 1 3 . 2 2 6 1 Gunslinging . | . . . . . . . . . . Exploded 3 | . . . . 3 . 1 . 1 . Melee 1 | . . . . . . . . . 1 Uniques/NPCs Destroyed . | . . . . . . . . . . Combat | -11 -10 -9 -9 -8 -7 -7 -7 -6 -6 -------- Run | Yrd Mat Mat Min Mat Fac Was Fac Fac Low Hostile Shots Fired 528 | . 46 41 8 131 20 . 33 92 157 Missed 168 | . 10 5 6 52 10 . 12 26 47 Hits 360 | . 36 36 2 79 10 . 21 66 110 Melee 1 | . . . . 1 . . . . . Projectile 359 | . 36 36 2 78 10 . 21 66 110 Critical Strikes 12 | . 1 . . 6 . . . . 5 Damage Taken 5711 | . 359 331 32 1209 137 53 633 1099 1858 Core 1479 | . 63 123 32 310 25 . 73 170 683 Absorbed by Shields 25 | . . . . . 25 . . . . Regen/Repaired (Parts) 224 | . . . . . . 125 6 93 . Core Remaining (%) 72 | 100 74 . 61 43 . . 86 . . Volleys Fired 329 | 2 28 36 9 131 3 18 30 38 34 Largest 4 | 1 2 2 2 2 1 1 3 4 2 Hottest 170 | 20 80 80 120 105 5 80 114 160 170 Shots Fired 524 | 2 56 63 18 153 3 18 73 96 42 Gun 313 | 2 56 32 10 149 . 1 21 26 16 Cannon 183 | . . 31 8 . . . 52 66 26 Launcher 23 | . . . . 4 . 15 . 4 . Special 5 | . . . . . 3 2 . . . Kinetic 349 | 2 . 47 16 91 . . 73 92 28 Thermal 141 | . 50 16 2 58 . 1 . . 14 Explosive 23 | . . . . 4 . 15 . 4 . Electromagnetic 6 | . 6 . . . . . . . . Robot Hit Streak 11 | 2 7 9 9 11 6 9 9 5 5 Robot Miss Streak 13 | . 6 3 2 4 . 1 7 13 4 Penetration Max 1 | . . . . . . . . 1 . Secondary Targets 4 | . 2 . . 2 . . . . . Max Gunslinging Chain 1 | . 1 . . 1 . . . . . Shots Hit Robots 286 | 2 27 40 12 95 3 12 29 48 18 Core Hits 207 | . 15 14 7 63 . 17 22 64 5 Critical Kills 14 | . . . . . . . 5 9 . Critical Parts Destroyed 23 | . . . . . . . 5 12 6 Critical Strikes 46 | . . 2 . 1 . . 10 21 12 Burn 2 | . . . . . . . . . 2 Destroy 42 | . . . . 1 . . 10 21 10 Blast 2 | . . 2 . . . . . . . Melee Attacks . | . . . . . . . . . . Impact . | . . . . . . . . . . Slashing . | . . . . . . . . . . Piercing . | . . . . . . . . . . Sneak Attacks . | . . . . . . . . . . Combat Hostiles . | . . . . . . . . . . Follow-up Attacks . | . . . . . . . . . . Damage Inflicted 8513 | 13 341 712 201 2229 . 1558 873 2058 528 Guns 3300 | 13 339 258 117 1786 . 22 227 435 103 Cannons 2439 | . . 454 84 . . . 489 1019 393 Explosions 2740 | . . . . 443 . 1536 157 604 . Melee . | . . . . . . . . . . Ramming 34 | . 2 . . . . . . . 32 Kinetic 4248 | 13 . 594 168 902 . . 716 1454 401 Thermal 1427 | . 275 118 33 884 . 22 . . 95 Explosive 2583 | . . . . 443 . 1536 . 604 . Electromagnetic 221 | . 64 . . . . . 157 . . Impact . | . . . . . . . . . . Slashing . | . . . . . . . . . . Piercing . | . . . . . . . . . . Highest Corruption 4 | . 4 . . . 2 2 3 . 2 Average Corruption 2 | . 4 . . . 1 2 2 . 2 Corruption Purged . | . . . . . . . . . . Corruption Blocked . | . . . . . . . . . . Effects 25 | . 3 . . . 1 8 13 . . Message Errors 4 | . 2 . . . . . 2 . . Matter Fused 9 | . 1 . . . 1 4 3 . . Heat Flow Errors 2 | . . . . . . . 2 . . Energy Discharges 2 | . . . . . . . 2 . . Data Loss (minor) 4 | . . . . . . 3 1 . . Misfires 3 | . . . . . . . 3 . . Alerts 1 | . . . . . . 1 . . . Overload Shots . | . . . . . . . . . . Overflow Damage 32 | . . 3 . 12 . . 5 12 . Projectiles 8 | . . 3 . . . . 5 . . Explosions 24 | . . . . 12 . . . 12 . Melee . | . . . . . . . . . . Knockbacks 18 | . . 4 . . . . . 14 . Impact . | . . . . . . . . . . Kinetic 17 | . . 4 . . . . . 13 . Secondary 1 | . . . . . . . . 1 . Self-Inflicted Damage 59 | . . . . . . 36 . 10 13 Shots 2 | . . . . . . 1 . 1 . Rammed 16 | . 1 . . . . . . . 15 Targets Rammed 17 | . 1 . . . . . . . 16 Kicked . | . . . . . . . . . . Crushed 1 | . . . . . . . . . 1 Highest Temperature 503 | . 219 . 21 481 8 51 259 503 451 Average Temperature 121 | . 119 . 14 163 4 11 56 136 145 Received Heat Transfer 2137 | . 120 84 18 630 27 . 105 417 736 Effects 10 | . . . . 7 . . . 1 2 Shutdowns 2 | . . . . 1 . . . . 1 Energy Bleed 5 | . . . . 5 . . . . . Matter Decay 1 | . . . . 1 . . . . . Short Circuit 1 | . . . . . . . . . 1 Damage (minor) 1 | . . . . . . . . 1 . Siege Activations . | . . . . . . . . . . Martial Activations . | . . . . . . . . . . Shielding Activations . | . . . . . . . . . . Robots Disrupted . | . . . . . . . . . . Combat Hostiles . | . . . . . . . . . . Robots Corrupted . | . . . . . . . . . . Combat Hostiles . | . . . . . . . . . . Parts Fried 1 | . . . . . . . 1 . . Impact Corruptions . | . . . . . . . . . . Robots Melted . | . . . . . . . . . . Combat Hostiles . | . . . . . . . . . . Parts Melted 5 | . . . . 4 . . 1 . . Heat Transferred 3475 | . 625 275 75 2000 . 50 . . 450 Parts Sabotaged . | . . . . . . . . . . Parts Stolen . | . . . . . . . . . . Parts Stripped . | . . . . . . . . . . Power Chain Reactions . | . . . . . . . . . . Alert | -11 -10 -9 -9 -8 -7 -7 -7 -6 -6 ------- Run | Yrd Mat Mat Min Mat Fac Was Fac Fac Low Maximum Alert Level 3 | . . . . 1 . . 3 2 . Low Security (%) 72 | 100 100 100 100 97 100 100 28 . . Level 1 10 | . . . . 2 . . 18 45 . Level 2 16 | . . . . . . . 49 54 . Level 3 . | . . . . . . . 2 . . Level 4 . | . . . . . . . . . . Level 5 . | . . . . . . . . . . High Security . | . . . . . . . . . . Max Security . | . . . . . . . . . . Peak Influence 721 | . 70 124 115 323 176 89 721 595 . Initial 349 | . . 7 44 39 146 61 . 349 . Average 157 | . 24 34 77 46 118 19 397 440 . Influence Increases 3121 | . 137 292 106 731 120 74 1064 552 45 Destroy 0b10 Robot/C 1400 | . 100 200 60 380 . . 320 320 20 Destroy 0b10 Robot/NC 235 | . 15 15 10 55 . . 75 65 . Destroy Leader 328 | . 22 46 20 80 . . 88 62 10 Allied During Kill 315 | . . . . . . . 286 29 . Disable Machine 300 | . . 30 15 . . . 225 30 . Destroy Structure 198 | . . 1 1 21 . 74 55 46 . Partial Spotted 15 | . . . . . . . 15 . . Lose Combat Pursuer 330 | . . . . 195 120 . . . 15 Influence Decreases 3121 | . 120 194 121 508 267 250 351 742 568 Entered New Map 992 | . . 10 71 61 177 115 . 364 194 Time Decay 1813 | . 120 164 50 367 80 125 321 278 308 Lost Part 276 | . . 20 . 80 10 10 30 60 66 Lost Ally 40 | . . . . . . . . 40 . Squads Dispatched 14 | . 1 1 1 2 1 . 4 4 . Investigation 3 | . 1 . 1 1 . . . . . Extermination 3 | . . . . . . . 2 1 . Reinforcement 7 | . . 1 . 1 1 . 2 2 . Assault 1 | . . . . . . . . 1 . Garrison . | . . . . . . . . . . Intercept . | . . . . . . . . . . Searches Triggered . | . . . . . . . . . . Construction Impeded 2 | . . . . . . . . 2 . Haulers Reinforced 1 | . . . . . . . 1 . . Active Scanning Responses . | . . . . . . . . . . Cargo Convoy Interrupts . | . . . . . . . . . . Stealth | -11 -10 -9 -9 -8 -7 -7 -7 -6 -6 --------- Run | Yrd Mat Mat Min Mat Fac Was Fac Fac Low Distress Signals 10 | . . 1 . 4 1 . 2 2 . Communications Jammed . | . . . . . . . . . . Distress Signals . | . . . . . . . . . . Times Spotted 146 | . 12 15 3 52 12 6 18 20 8 Peak Tracking Total 13 | . 5 7 2 13 10 2 3 6 6 Tactical Retreats 6 | . . . . 3 2 . . . 1 Traps | -11 -10 -9 -9 -8 -7 -7 -7 -6 -6 ------- Run | Yrd Mat Mat Min Mat Fac Was Fac Fac Low Traps Triggered 6 | . 1 . . 1 4 . . . . Indirectly . | . . . . . . . . . . Trap Hack Attempts . | . . . . . . . . . . Triggered . | . . . . . . . . . . Disarmed . | . . . . . . . . . . Reprogrammed . | . . . . . . . . . . Reused . | . . . . . . . . . . Traps Extracted . | . . . . . . . . . . Installed . | . . . . . . . . . . Triggered . | . . . . . . . . . . Machines | -11 -10 -9 -9 -8 -7 -7 -7 -6 -6 ---------- Run | Yrd Mat Mat Min Mat Fac Was Fac Fac Low Machines Disabled 20 | . . 2 1 . . . 15 2 . Max in Single Turn 3 | . . 1 1 . . . 3 1 . Garrison Access 1 | . . . . 1 . . . . . Machines Repaired . | . . . . . . . . . . Machines Dismantled . | . . . . . . . . . . Machines Sabotaged . | . . . . . . . . . . Overloaded Fab Kills . | . . . . . . . . . . Hacking | -11 -10 -9 -9 -8 -7 -7 -7 -6 -6 --------- Run | Yrd Mat Mat Min Mat Fac Was Fac Fac Low Machines Accessed 6 | . . . 1 1 . . 3 1 . Terminals 2 | . . . . . . . 2 . . Fabricators 1 | . . . . . . . 1 . . Repair Stations 1 | . . . . . . . . 1 . Recycling Units . | . . . . . . . . . . Scanalyzers . | . . . . . . . . . . Garrison Access 1 | . . . . 1 . . . . . Total Hacks 9 | . . . 1 1 . . 5 2 . Successful 3 | . . . 1 1 . . 1 . . Failed 6 | . . . . . . . 4 2 . Catastrophic 2 | . . . . . . . 2 . . Database Lockouts . | . . . . . . . . . . Manual 4 | . . . . . . . 4 . . Terminals 4 | . . . . . . . 4 . . Fabricators 1 | . . . . . . . 1 . . Repair Stations 2 | . . . . . . . . 2 . Recycling Units . | . . . . . . . . . . Scanalyzers . | . . . . . . . . . . Garrison Access 1 | . . . . 1 . . . . . Terminal Hacks 2 | . . . 1 . . . 1 . . Open Door 1 | . . . 1 . . . . . . Emergency Access Points 1 | . . . . . . . 1 . . Fabricator Hacks . | . . . . . . . . . . Repair Station Hacks . | . . . . . . . . . . Recycling Unit Hacks . | . . . . . . . . . . Scanalyzer . | . . . . . . . . . . Garrison Access Hacks 1 | . . . . 1 . . . . . Seal Access 1 | . . . . 1 . . . . . Unauthorized Hacks . | . . . . . . . . . . Terminals . | . . . . . . . . . . Fabricators . | . . . . . . . . . . Repair Stations . | . . . . . . . . . . Recycling Units . | . . . . . . . . . . Scanalyzers . | . . . . . . . . . . Garrison Access . | . . . . . . . . . . Data Cores Recovered . | . . . . . . . . . . Used . | . . . . . . . . . . Hacking Detections 4 | . . . . . . . 3 1 . Full Trace Events . | . . . . . . . . . . Feedback Events . | . . . . . . . . . . Feedback Blocked . | . . . . . . . . . . Robot Schematics Acquired . | . . . . . . . . . . Robots Built . | . . . . . . . . . . Authchips . | . . . . . . . . . . Time . | . . . . . . . . . . Total Robot Build Rating . | . . . . . . . . . . Part Schematics Acquired . | . . . . . . . . . . Parts Built . | . . . . . . . . . . Authchips . | . . . . . . . . . . Time . | . . . . . . . . . . Total Part Build Rating . | . . . . . . . . . . Parts Repaired . | . . . . . . . . . . Time . | . . . . . . . . . . Parts Recycled . | . . . . . . . . . . Recycled Matter . | . . . . . . . . . . Retrieved Matter . | . . . . . . . . . . Retrieved Components . | . . . . . . . . . . Parts Scanalyzed . | . . . . . . . . . . Part Schematics Acquired . | . . . . . . . . . . Parts Damaged . | . . . . . . . . . . Bothacking | -11 -10 -9 -9 -8 -7 -7 -7 -6 -6 ------------ Run | Yrd Mat Mat Min Mat Fac Was Fac Fac Low Used RIF Installer . | . . . . . . . . . . Robots Hacked 2 | . . . . . 2 . . . . Non-combat 1 | . . . . . 1 . . . . Combat 1 | . . . . . 1 . . . . Robot Hacks Applied 2 | . . . . . 2 . . . . parse_system 1 | . . . . . 1 . . . . find_chute 1 | . . . . . 1 . . . . Relay Couplers Released . | . . . . . . . . . . Fabnet Peak Effective % . | . . . . . . . . . . Robots Rewired . | . . . . . . . . . . Allies Hacked . | . . . . . . . . . . Hacks Repelled . | . . . . . . . . . . Allies | -11 -10 -9 -9 -8 -7 -7 -7 -6 -6 -------- Run | Yrd Mat Mat Min Mat Fac Was Fac Fac Low Total Allies 18 | . . . . . . 18 . . . Largest Group 18 | . . . . . . 18 12 3 . Highest-Rated Group 434 | . . . . . . 434 350 86 . Highest-Rated Ally 35 | . . . . . . 35 35 31 . Total Orders . | . . . . . . . . . . Ally Attacks 186 | . . . . . . 73 91 22 . Total Damage 4048 | . . . . . . 2134 1665 249 . Kills 26 | . . . . . . 6 17 3 . Allies Corrupted . | . . . . . . . . . . Allies Melted . | . . . . . . . . . . Intel | -11 -10 -9 -9 -8 -7 -7 -7 -6 -6 ------- Run | Yrd Mat Mat Min Mat Fac Was Fac Fac Low Active Infowar (turns) 1302 | . 171 505 102 524 . . . . . Sensors 1302 | . 171 505 102 524 . . . . . Robot Analysis Total . | . . . . . . . . . . Derelict Logs Recovered . | . . . . . . . . . . Drone Launches . | . . . . . . . . . . Drone Recoveries . | . . . . . . . . . . Exploration | -11 -10 -9 -9 -8 -7 -7 -7 -6 -6 ------------- Run | Yrd Mat Mat Min Mat Fac Was Fac Fac Low Turns Passed 5112 | 85 352 505 102 1034 177 721 756 607 773 Spaces Moved 3419 | 48 159 255 127 1021 303 450 390 302 364 Core 117 | 6 . 4 . 2 . . . . 105 Treads 1358 | 42 159 . . . . 206 390 302 259 Legs . | . . . . . . . . . . Wheels . | . . . . . . . . . . Hover . | . . . . . . . . . . Flight 1944 | . . 251 127 1019 303 244 . . . Fastest Speed 14 | 50 160 31 31 14 24 30 160 160 50 Average Speed 106 | 146 160 114 31 41 51 144 160 160 181 Slowest Speed 400 | 160 160 200 31 200 97 178 160 160 400 Overloaded Moves 284 | . . . . 138 146 . . . . Propulsion Burnouts . | . . . . . . . . . . Robots Hopped 15 | . . . . 12 3 . . . . Potential Cave-ins . | . . . . . . . . . . Cave-ins Triggered . | . . . . . . . . . . Exploration Rate (%) 36 | 3 41 29 32 75 15 97 17 7 50 Regions Visited 9 Branch Regions 2 Pre-discovered Areas . | . . . . . . . . . . Known Exits Taken 1 | . . . . . . . . 1 . Unknown Exits Taken 6 | 1 1 1 1 1 . . 1 . . Scrap Searched 3 | . . . . . . . . . 3 Spaces Dug 7 | . . . . . . 7 . . . Terrain Destroyed 195 | . . 1 1 21 . 80 17 67 8 Melee . | . . . . . . . . . . Projectile 57 | . . 1 1 . . . 17 30 8 AOE 138 | . . . . 21 . 80 . 37 . Terrain Rammed . | . . . . . . . . . . Walls Destroyed . | . . . . . . . . . . Machines Disabled . | . . . . . . . . . . Actions | -11 -10 -9 -9 -8 -7 -7 -7 -6 -6 --------- Run | Yrd Mat Mat Min Mat Fac Was Fac Fac Low Total 4468 | 61 199 406 171 1535 320 513 474 358 431 Wait 529 | . 3 88 24 343 3 18 41 9 . Move 3384 | 47 158 254 126 999 297 449 389 301 364 Hop 12 | . . . . 9 3 . . . . Pick Up 53 | 6 5 10 3 11 1 9 4 2 2 Fast Attach 24 | . . 1 1 11 . 1 1 3 6 Attach 50 | 5 2 9 . 12 2 8 4 4 4 Detach 11 | . . 1 . 2 1 3 1 . 3 Swap 10 | 1 2 2 3 1 . . 1 . . Drop 40 | . . 5 5 16 1 7 3 1 2 Fire 329 | 2 28 36 9 131 3 18 30 38 34 Melee . | . . . . . . . . . . Ram 9 | . . . . . . . . . 9 Kick . | . . . . . . . . . . Crush 8 | . 1 . . . . . . . 7 Escape Stasis 9 | . . . . . 9 . . . . Rewire . | . . . . . . . . . . Trap . | . . . . . . . . . . Miscellaneous . | . . . . . . . . . . Route ------- -11/Scrapyard -10/Materials -9/Materials (discovered 2 exits: *Mat / *Min) -9/Mines -8/Materials (discovered 3 exits: [*Fac x3]) -7/Factory -7/Waste -7/Factory -6/Factory -6/Lower Caves History --------- Turn | Location | Event 10 | -11/Scrapyard | Discovered new exit (range 16) 86 | -11/Scrapyard | Entered Materials 307 | -10/Materials | Build established: Mutant 417 | -10/Materials | Discovered new exit (range 14) 438 | -10/Materials | Entered another Materials area 438 | -9/Materials | Evolved 2 slots: Propulsion x2 912 | -9/Materials | Discovered new exit (range 15) 932 | -9/Materials | Discovered new exit (range 16) 943 | -9/Materials | Entered Mines 1007 | -9/Mines | Discovered new exit (range 10) 1013 | -9/Mines | Met a Derelict shopkeep closing up shop 1045 | -9/Mines | Entered Materials 1045 | -8/Materials | Evolved 2 slots: Utility x2 1436 | -8/Materials | Discovered new exit (range 12) 1676 | -8/Materials | Discovered new exit (range 16) 1928 | -8/Materials | Build established: Sprinter 2013 | -8/Materials | Discovered new exit (range 7) 2075 | -8/Materials | Core integrity fell below 50% 2079 | -8/Materials | Entered Factory 2079 | -7/Factory | Evolved 2 slots: Propulsion x1, Weapon x1 2256 | -7/Factory | Sucked down chute 2256 | -7/Factory | Entered Waste 2260 | -7/Waste | Spotted C-40 Crusher 2261 | -7/Waste | Spotted C-40 Crusher 2269 | -7/Waste | Destroyed C-40 Crusher 2281 | -7/Waste | Warlord forces began an assault 2288 | -7/Waste | Spotted C-40 Crusher 2295 | -7/Waste | Allies destroyed C-40 Crusher 2301 | -7/Waste | Spotted C-40 Crusher 2304 | -7/Waste | Allies destroyed C-40 Crusher 2317 | -7/Waste | Destroyed C-40 Crusher 2318 | -7/Waste | Spotted C-40 Crusher 2322 | -7/Waste | Allies destroyed C-40 Crusher 2330 | -7/Waste | Spotted C-40 Crusher 2338 | -7/Waste | Destroyed C-40 Crusher 2367 | -7/Waste | Lost 6 allies 2401 | -7/Waste | Discovered new exit (range 11) 2959 | -7/Waste | Build established: Hacker-Tank 2977 | -7/Waste | Entered Factory 2977 | -7/Factory | Accompanied by 12 allies 3405 | -7/Factory | Lost 9 allies 3592 | -7/Factory | Discovered new exit (range 12) 3652 | -7/Factory | Build established: Hacker-Mutant 3733 | -7/Factory | Entered another Factory area 3733 | -6/Factory | Accompanied by 3 allies 3733 | -6/Factory | Evolved 2 slots: Utility x1, Weapon x1 3756 | -6/Factory | Discovered new exit (range 9) 4083 | -6/Factory | First assault squad dispatched 4180 | -6/Factory | Lost 4 parts (4w) 4339 | -6/Factory | Identified exit to Lower Caves 4340 | -6/Factory | Entered Lower Caves 4583 | -6/Lower Caves | Found DCF Scrap (15 items) 4827 | -6/Lower Caves | Spotted B-75 Beast 4961 | -6/Lower Caves | Lost 9 parts (1p1n1u6w) 5080 | -6/Lower Caves | Core integrity fell below 50% 5110 | -6/Lower Caves | Core integrity fell below 20% 5113 | -6/Lower Caves | Destroyed by H-66 Slayer with Gauss Rifle Last Messages --------------- H-66 Slayer destroyed. Acquired 2 matter. Acquired 31 matter. Flexi-carbon Leg fries itself beyond repair. Acquired 41 matter. Acquired 12 matter. Acquired Neutrino Core. Acquired 17 matter. Penetrated by Slug. Slug penetrates Wall. Spk. Medium Treads destroyed. Slug penetrates Wall. Spk. Medium Treads destroyed. Slug penetrates Wall. Imp. Hacking Suite destroyed. Slammed into S-27 Virus. Destabilizing: System corrupted (+2). Slammed into S-27 Virus. Slug penetrates Wall. Penetrated by Slug. Map ----- +----------------------------------------------------+ | ???????## #?????#######" #?# "# | | ??????? #????????????#" ##??# % | | ????? ## ??????????####"" ##???## %% | | ???? ??## #??????##### #???## # | | ?????????####?####### ##### #### | | ??????????????# ## " #??? | | ??????????????## #### """" ##?? | | ???????????????# #??# "" #?? | | ???????????????# #### "" % ####?? | | ???????????????# ###" """ ""####????? | | ???????????????# ## # " """ #####?????? | | ???????????????# #### # " ""# ##????? | | ???????????????# #### ###% %## #????? | | ???????????????# ## ####% % | | ???????????????# ## ### | | ???????????????# ### #####?# #### | | ???????????????# ##?## ##?????# ## #????? | | ???????????????# ##???## ##??????###? #?????? | | ???????????????# #?????# ##?????????? ##?? | | ???????????????# #?????# #??????????? | | ???????????????## ##?????## #???????????""" | | ????????????????###???????# hh###?????????"""" | | ?????????????????????????## ##??????????"" ## | | ????????????????????????## ##??????????????? | | ?????????????????????#### #??????????????? | | ?????????????????????# @ ##?????????????? | | ?????????????????????## ##????????????? | | ??????????????????????##### #????????????? | | ????????????????????##### ##s #????????????? | | ????????????????????# ##s ##????????????? | | ????????????????????# ## #####?????????????? | | ????????????????##### ?# ####??????????????? | | ????????????????# ?## ##?????????????? | | ????????????????# ### #?????????????? | | ????????????????# ### ##?????????????? | | ???????????????## ##??####??????????????? | | ???????????????# #?????????????????????? | | ??????????????# #?????????????????????? | | ??????????????## ## #????????????????????? | | ???????????????### ### #???????????????????? | | ?????????????????#####??## #???????????????????? | | ?????????????????????????#####???????????????????? | | ?????????????????????????????????????????????????? | | ?????????????????????????????????????????????????? | | ?????????????????????????????????????????????????? | | ?????????????????????????????????????????????????? | | ?????????????????????????????????????????????????? | | ?????????????????????????????????????????????????? | | ?????????????????????????????????????????????????? | | ?????????????????????????????????????????????????? | +----------------------------------------------------+ Best States ------------- Heat Dissipation 62 Energy Generation 23 Energy Capacity 300 Matter Stores 300 Matter Capacity 300 Sight Range 16 Robot Scan Range 14 Terrain Scan Density 10 Base Temperature (-) 100 Armor Coverage 80 Weapon Cycling 15 Evasion (%) 65 Recoil Reduction 3 Kinecelleration 30 Offensive Hacking 12 Defensive Hacking 10 Item Schematics ----------------- None Robot Schematics ------------------ None Fabricated ------------ Nothing Repaired ---------- Nothing Alien Tech Used ----------------- None Achievements -------------- Whoosh! Challenges ------------ None Game ------ Seed PowerRelayRouter Manual? 0 Play Time 00:47:09 Cumulative 129.3 hours Start 2025.09.07 @ 19:02:47 End 2025.09.07 @ 19:45:25 Sessions 1 Manual Loads 0 Difficulty Rogue Special Mode None Game No. 451 Rogue 451 Adventurer 0 Explorer 0 Win Type - Total 0 Types 0/0/0/0/0/0/0/0/0/0 Lore% 51 Gallery% 47 Achievement% 35 Wizard Run 0 Options --------- Layout 2 ASCII 0 Keyboard 0 Movement Mouse Keybinds 0 Fullscreen 2 Font 24/Smallcaps Map View 50x44 Zoom Use 0% Tactical HUD 0 Map Filters NONE Filters NONE Steam 1 RUN: c26bf336-a9aa-469b-b063-25f9e487a429